bitfinex/quotes_ETHUSD_20240816
["timestamp","ask_amount","ask_price","bid_price","bid_amount"]
[1723822190659,3.89142,2569.8,2569.3,3.89199]
[1723822190875,3.89151,2569.7,2569.3,3.89199]
[1723822191085,3.89203,2569.4,2568.9,3.8926]
[1723822191272,3.89207,2569.4,2568.8,3.89286]
[1723822191472,0.57046195,2569.7,2569.1,3.89233]
[1723822191473,3.89165,2569.6,2569.1,3.89233]
[1723822191675,0.4179117,2569.5,2568.8,4.530036]
[1723822191873,3.89189,2569.5,2568.8,3.89286]
[1723822192073,3.89189,2569.5,2569.0,3.89256]
[1723822192273,3.89189,2569.5,2569.0,3.89244]
[1723822192274,3.89183,2569.5,2569.0,3.89244]
[1723822193001,3.89166,2569.6,2569.0,3.89243]
[1723822193202,3.89161,2569.7,2569.0,3.89243]
[1723822193405,4.6133037,2569.9,2568.8,0.637176]
[1723822193574,3.89098,2570.1,2569.4,3.89186]
[1723822193897,0.41804526,2570.0,2569.6,3.89165]
[1723822194098,3.89098,2570.1,2569.5,3.8918]
[1723822194407,0.41801,2570.0,2569.6,3.89156]
[1723822194602,3.89098,2570.1,2569.6,3.89156]
[1723822194902,0.41797842,2570.0,2569.5,3.8918]
[1723822195067,3.89075,2570.2,2569.6,3.89156]
[1723822195264,0.41799462,2570.1,2569.6,3.89156]
[1723822195464,0.72205857,2570.4,2569.9,7.7824]
[1723822195705,3.89039,2570.5,2569.9,3.8912]
[1723822195925,0.41806207,2570.4,2570.0,3.89097]
[1723822196083,3.89039,2570.5,2569.6,4.303466]
[1723822196084,3.89039,2570.5,2569.7,7.78277]
[1723822196265,3.89039,2570.5,2569.2,3.0]
[1723822196266,2.2627,2570.2,2569.2,3.0]
[1723822196467,3.89133,2569.9,2569.3,3.89201]
[1723822196690,3.89157,2569.7,2569.2,7.78441]
[1723822196889,3.89157,2569.7,2569.2,3.89218]
[1723822197078,7.78259,2569.9,2569.3,3.892]
[1723822197282,0.41800461,2569.8,2569.3,3.892]
[1723822197479,4.16027452,2570.1,2569.5,3.8918]
[1723822197791,1.25311886,2570.0,2568.9,2.5724076]
[1723822197972,3.89144,2569.8,2569.2,3.89218]
[1723822198167,4.3095378,2569.7,2569.1,3.89227]
[1723822198404,4.3095378,2569.7,2568.9,6.4650076]
[1723822198405,3.89189,2569.5,2569.0,3.89255]
[1723822198710,3.89129,2569.9,2569.4,3.89187]
[1723822198879,3.89129,2569.9,2568.9,6.15339]
[1723822198880,4.30932822,2569.8,2569.3,3.892]
[1723822199205,0.41798447,2569.7,2569.3,3.892]
[1723822199510,3.89115,2570.0,2569.5,3.89173]
[1723822199685,0.41802751,2569.9,2569.5,3.89171]
[1723822199881,3.89114,2570.0,2569.5,3.89171]
[1723822199882,5.01560126,2570.0,2569.5,3.89171]
[1723822200096,0.41808101,2569.9,2569.6,3.89156]
[1723822200301,0.72216997,2570.1,2569.6,3.89155]
[1723822200630,3.89064,2570.3,2569.6,3.89155]
[1723822200769,1.19990259,2570.5,2569.6,2.671055]
[1723822200770,0.41820985,2570.2,2569.6,2.671055]
[1723822200969,5.09025259,2570.5,2570.1,3.89088]
[1723822200970,0.7223685,2570.5,2570.1,3.89088]
[1723822201165,4.32567794,2570.9,2570.3,3.89059]
[1723822201166,0.41823541,2570.4,2570.3,3.89059]
[1723822201410,1.19990259,2571.0,2570.3,2.2504]
[1723822201578,0.41818777,2570.9,2570.5,3.89026]
[1723822201782,3.89007,2570.7,2570.0,3.89103]
[1723822201988,3.89042,2570.5,2570.0,3.89101]
[1723822202185,3.89042,2570.5,2569.8,3.89125]
[1723822202418,3.89088,2570.2,2569.6,3.89156]
[1723822202581,3.89088,2570.2,2569.0,14.07935926]
[1723822202582,0.49091272,2570.1,2568.7,3.05288875]
[1723822202786,3.89174,2569.6,2568.7,2.88403619]
[1723822202983,3.89174,2569.6,2569.1,3.89239]
[1723822203625,3.89204,2569.4,2568.8,3.89273]
[1723822203926,3.89204,2569.4,2568.7,6.14331]
[1723822203927,3.96491335,2569.3,2568.7,3.89291]
[1723822204123,3.89241,2569.1,2568.5,3.89323]
[1723822204273,3.89226,2569.2,2568.7,3.89299]
[1723822204474,3.89226,2569.2,2568.5,3.89323]
[1723822204475,3.96522335,2569.1,2568.5,3.89323]
[1723822204683,3.89226,2569.2,2568.5,3.89323]
[1723822204883,7.78403,2569.4,2568.8,3.89286]
[1723822205105,3.89198,2569.4,2568.9,3.89271]
[1723822205625,3.89176,2569.6,2569.0,3.89247]
[1723822205774,4.24206026,2569.8,2569.2,3.89222]
[1723822205775,0.41796335,2569.5,2569.2,3.89222]
[1723822205982,3.89161,2569.7,2569.1,3.8924]
[1723822206188,4.96398868,2569.8,2569.2,3.89224]
[1723822206189,0.41799373,2569.6,2569.2,3.89224]
[1723822206407,3.89142,2569.8,2569.3,3.89209]
[1723822206608,2.3065,2569.9,2569.4,3.89192]
[1723822206609,0.41799636,2569.7,2569.4,3.89192]
[1723822206773,6.1977,2569.9,2569.4,3.89192]
[1723822206974,4.3821669,2569.8,2569.1,3.89232]
[1723822207177,3.89176,2569.6,2569.0,7.78497]
[1723822207416,0.41799404,2569.5,2569.1,3.89239]
[1723822207581,3.89176,2569.6,2569.1,3.89239]
[1723822207781,0.41800809,2569.5,2569.0,3.89247]
[1723822208013,4.61346418,2569.8,2569.2,3.89214]
[1723822208182,5.09104259,2570.0,2569.0,6.22356]
[1723822208183,0.41810236,2569.7,2569.0,6.22356]
[1723822208428,3.89114,2570.0,2569.5,3.89171]
[1723822208587,0.41811653,2569.9,2569.8,3.89135]
[1723822208839,2.59577662,2570.6,2570.0,3.89095]
[1723822208840,5.7003744,2570.6,2570.0,3.89095]
[1723822208996,0.41819339,2570.5,2570.0,3.89095]
[1723822209176,0.41819339,2570.4,2570.0,3.89095]
[1723822209379,0.41822303,2570.3,2570.0,3.89094]
[1723822209627,0.72250105,2570.7,2570.3,3.89051]
[1723822209777,4.89577597,2570.9,2570.0,0.389094]
[1723822209778,1.19990259,2570.9,2570.5,3.89021]
[1723822210131,5.49194502,2571.1,2569.7,2.331]
[1723822210132,0.07280335,2571.1,2570.3,3.89048]
[1723822210277,0.07280335,2571.1,2570.4,3.8903]
[1723822210278,0.41839305,2571.0,2570.4,3.8903]
[1723822210477,0.41839305,2571.0,2570.8,3.88974]
[1723822210722,0.7227481,2571.3,2570.9,3.88965]
[1723822210929,3.88885,2571.5,2571.0,3.88942]
[1723822210930,0.7227481,2571.5,2571.0,3.88942]
[1723822211079,0.41849909,2571.4,2570.9,3.88965]
[1723822211279,1.21923107,2571.5,2571.0,3.88943]
[1723822211582,1.60248502,2571.9,2571.0,3.88943]
[1723822211583,5.08796259,2572.0,2571.3,7.77796]
[1723822211777,5.08796259,2572.0,2570.8,3.0]
[1723822211778,0.41860952,2571.9,2570.8,3.0]
[1723822212006,2.9048537,2572.0,2570.8,3.0]
[1723822212007,3.88904,2571.4,2570.8,3.8897]
[1723822212225,0.41853454,2571.3,2571.1,3.88929]
[1723822212404,5.08834259,2571.8,2570.5,6.14856]
[1723822212405,0.07280335,2571.5,2570.5,6.14856]
[1723822212726,2.80779935,2571.4,2570.4,3.89032]
[1723822212927,2.80779935,2571.4,2570.3,3.0]
[1723822212928,0.82654988,2571.3,2570.9,3.88967]
[1723822213221,0.07280335,2571.3,2570.5,3.8902]
[1723822213383,3.88954,2571.0,2570.5,3.8902]
[1723822213596,3.88933,2571.2,2570.5,3.89019]
[1723822213843,0.28078171,2571.2,2570.1,2.4301]
[1723822214138,3.88987,2570.8,2570.1,3.8908]
[1723822214354,0.388987,2570.8,2570.4,3.89031]
[1723822214637,3.88946,2571.1,2570.5,3.89028]
[1723822214831,3.88992,2570.8,2570.2,3.89067]
[1723822214993,0.49105818,2571.0,2570.2,3.89064]
[1723822214994,3.96242335,2571.0,2570.2,3.89064]
[1723822215196,3.96242335,2571.0,2570.4,3.89042]
[1723822215197,0.65613526,2570.9,2570.4,3.89042]
[1723822215418,3.89007,2570.7,2570.1,3.89081]
[1723822215604,0.46181035,2570.6,2569.8,3.89126]
[1723822215805,3.89052,2570.4,2569.8,3.89126]
[1723822216018,4.35202035,2570.6,2569.5,3.89173]
[1723822216220,3.88992,2570.8,2570.2,3.89064]
[1723822216434,2.3878,2571.1,2570.4,3.89042]
[1723822216734,2.3878,2571.1,2570.3,3.89047]
[1723822216735,4.30783748,2571.0,2570.3,3.89047]
[1723822216901,2.3878,2571.1,2570.6,3.89013]
[1723822217101,1.19990259,2571.4,2570.8,3.88981]
[1723822217102,3.889,2571.4,2570.8,3.88981]
[1723822217331,2.3878,2571.6,2570.6,4.279053]
[1723822217498,3.88992,2570.8,2570.2,3.89066]
[1723822217701,3.88992,2570.8,2570.2,3.89065]
[1723822217901,3.88955,2571.0,2570.0,3.891]
[1723822218125,3.88955,2571.0,2570.4,3.89036]
[1723822218313,3.8888,2571.5,2570.2,3.89066]
[1723822218314,5.08870259,2571.5,2570.2,3.89066]
[1723822218508,3.88993,2570.8,2570.3,3.89055]
[1723822218709,3.88992,2570.8,2570.2,3.89066]
[1723822218910,10.0674,2571.0,2570.2,3.89065]
[1723822219111,3.88963,2571.0,2570.5,3.89026]
[1723822219352,3.88931,2571.2,2570.6,3.89013]
[1723822219529,8.12467285,2571.4,2570.5,0.389026]
[1723822219530,6.17712,2571.4,2570.8,3.88974]
[1723822219864,5.08829259,2571.8,2571.3,3.88896]
[1723822219865,3.88838,2571.8,2571.3,3.88896]
[1723822220161,3.88838,2571.8,2570.6,2.4355]
[1723822220162,3.88909,2571.3,2570.7,3.88989]
[1723822220360,3.88946,2571.1,2570.5,3.89019]
[1723822220521,3.88947,2571.1,2570.5,3.89026]
[1723822220857,3.8897,2570.9,2570.3,3.89048]
[1723822221003,0.07280335,2570.9,2569.9,6.89114]
[1723822221202,3.89068,2570.3,2569.7,3.89142]
[1723822221505,0.07280335,2570.2,2569.0,2.4292]
[1723822221848,0.41789672,2570.1,2569.5,2.4292]
[1723822222050,3.88973,2570.9,2569.5,2.4292]
[1723822222264,3.88973,2570.9,2570.2,3.89061]
[1723822222555,3.88973,2570.9,2569.8,3.89124]
[1723822222556,3.89044,2570.4,2569.8,3.89124]
[1723822223431,3.89128,2569.9,2569.1,2.3905]
[1723822223634,3.89128,2569.9,2569.3,3.89201]
[1723822223955,2.3175,2570.5,2570.0,3.89095]
[1723822224099,4.278863,2570.8,2570.0,4.280045]
[1723822224304,0.41802461,2570.7,2570.3,3.89058]
[1723822224600,0.41802461,2570.7,2570.2,3.89065]
[1723822224601,0.07280335,2570.7,2569.8,3.89126]
[1723822224805,3.89052,2570.4,2569.8,3.89131]
[1723822225031,0.621735,2570.8,2570.2,3.89072]
[1723822225248,3.88961,2571.0,2570.3,3.89047]
[1723822225459,3.88933,2571.2,2570.5,3.89019]
[1723822225611,3.88939,2571.1,2570.5,3.89015]
[1723822226036,8.01176,2571.2,2570.5,3.89015]
[1723822226237,4.1224,2571.2,2570.7,3.88991]
[1723822226450,2.3307,2571.3,2570.7,3.8899]
[1723822226605,3.88902,2571.4,2570.8,3.88976]
[1723822226957,0.07280335,2571.3,2570.5,3.89016]
[1723822227257,3.89025,2570.6,2570.0,3.0]
[1723822227433,4.279275,2570.6,2569.9,3.89107]
[1723822227747,7.77992,2570.8,2570.1,3.89075]
[1723822228049,2.3307,2571.1,2570.1,1.078172]
[1723822228231,2.3307,2571.1,2570.0,6.89094]
[1723822228232,0.49121215,2571.0,2570.0,3.0]
[1723822228436,0.70060002,2570.9,2570.0,3.89094]
[1723822228635,3.89056,2570.4,2569.8,3.89122]
[1723822228866,3.89056,2570.4,2568.9,23.68257]
[1723822228867,3.89159,2569.7,2569.2,3.89217]
[1723822229163,3.89105,2570.0,2569.5,3.89177]
[1723822229451,3.89128,2569.9,2569.3,3.89198]
[1723822229659,0.24345,2570.3,2569.1,3.89232]
[1723822229660,3.89165,2569.7,2569.1,3.89231]
[1723822229818,0.31625335,2570.3,2569.3,3.8921]
[1723822229819,3.89136,2569.8,2569.3,3.8921]
[1723822230020,3.89123,2569.9,2569.3,7.78412]
[1723822230324,7.78255,2569.9,2569.3,3.89202]
[1723822230524,3.89139,2569.8,2569.3,3.89202]
[1723822230919,0.07280335,2569.7,2568.9,3.89262]
[1723822231124,6.37407335,2569.7,2569.0,3.89254]
[1723822231331,3.89251,2569.1,2568.6,3.89313]
[1723822231553,3.89166,2569.6,2568.2,3.89364]
[1723822231554,0.07280335,2569.0,2568.2,3.89364]
[1723822231867,0.07280335,2569.0,2568.2,4.52146]
[1723822231868,3.89288,2568.8,2568.2,4.52146]
[1723822232026,3.8928,2568.9,2568.4,3.89345]
[1723822232849,3.8928,2568.9,2568.3,3.89354]
[1723822232850,3.89279,2568.9,2568.3,3.89354]
[1723822233167,3.892,2569.4,2568.3,0.8415]
[1723822233168,2.4698,2569.4,2568.3,0.8415]
[1723822233457,0.38352498,2569.3,2568.2,3.89373]
[1723822233663,3.89247,2569.1,2568.4,3.89344]
[1723822233946,4.69380383,2569.3,2568.8,3.89286]
[1723822233947,4.20291163,2569.3,2568.8,3.89286]
[1723822234146,2.4698,2569.4,2568.9,3.89267]
[1723822234355,7.7838,2569.5,2568.9,3.89267]
[1723822234558,3.89201,2569.4,2568.7,3.89289]
[1723822234739,4.6704,2569.4,2568.8,3.89277]
[1723822234912,3.8928,2568.9,2568.3,3.89348]
[1723822235104,4.35924,2569.3,2568.5,3.89332]
[1723822235309,3.8922,2569.3,2568.7,3.89292]
[1723822235508,7.7844,2569.3,2568.7,3.89292]
[1723822235821,7.7844,2569.3,2568.8,3.89277]
[1723822235822,3.8922,2569.3,2568.8,3.89277]
[1723822236230,3.89189,2569.5,2568.9,3.89256]
[1723822236449,3.89174,2569.6,2568.9,3.89259]
[1723822236609,3.89181,2569.5,2569.0,3.89245]
[1723822236809,3.89181,2569.5,2568.9,3.89259]
[1723822236810,3.89106,2570.0,2569.4,3.89188]
[1723822237126,3.89099,2570.1,2569.4,3.89188]
[1723822237127,3.89099,2570.1,2569.5,3.89169]
[1723822237326,2.2856,2570.2,2569.0,6.89247]
[1723822237327,0.69046235,2570.0,2569.0,6.89247]
[1723822237540,0.69046235,2570.0,2568.8,3.89275]
[1723822237541,3.89205,2569.4,2568.8,3.89275]
[1723822237752,7.78358,2569.6,2569.0,3.89255]
[1723822237960,7.78358,2569.6,2569.0,3.89254]
[1723822237961,4.670108,2569.6,2569.0,3.89254]
[1723822238116,7.78351,2569.6,2569.0,3.89254]
[1723822238312,3.8911,2570.0,2568.7,2.4621]
[1723822238313,3.89111,2570.0,2568.7,2.4621]
[1723822238633,3.89111,2570.0,2569.4,3.89193]
[1723822238830,3.89111,2570.0,2569.4,3.89183]
[1723822239142,3.89098,2570.1,2569.5,3.89171]
[1723822239341,4.897791,2570.0,2569.5,3.89179]
[1723822239542,1.006741,2570.0,2569.6,3.89163]
[1723822239839,6.17641,2570.2,2569.6,3.89163]
[1723822240157,3.8913,2569.9,2569.3,3.892]
[1723822240361,6.794081,2570.2,2569.7,3.89141]
[1723822240526,3.8903,2570.5,2569.2,3.0]
[1723822240726,6.24592,2570.6,2569.2,3.0]
[1723822240727,6.24592,2570.6,2569.8,3.89127]
[1723822241047,6.24592,2570.6,2569.9,3.89118]
[1723822241048,3.89044,2570.4,2569.9,3.89118]
[1723822241250,6.24592,2570.6,2570.1,3.89079]
[1723822241251,0.624592,2570.5,2570.1,3.89079]
[1723822241413,2.3557,2570.6,2570.0,3.89096]
[1723822241414,3.89014,2570.6,2570.0,3.89096]
[1723822241619,3.89014,2570.6,2570.0,3.89094]
[1723822242015,6.23712,2571.0,2570.3,3.89056]
[1723822242216,6.23712,2571.0,2570.3,4.279636]
[1723822242423,2.3475,2571.0,2570.1,3.89079]
[1723822242623,3.89022,2570.6,2570.1,3.89079]
[1723822242848,3.88991,2570.8,2570.1,3.89079]
[1723822243052,4.90256,2570.8,2570.2,3.89065]
[1723822243235,1.01272,2570.8,2570.2,3.89065]
[1723822243435,2.3475,2571.0,2570.5,3.89019]
[1723822243633,3.88917,2571.3,2570.6,3.89013]
[1723822243634,3.88916,2571.3,2570.6,3.89013]
[1723822243834,1.19990259,2571.7,2571.0,3.88949]
[1723822243835,3.88884,2571.5,2571.0,3.88949]
[1723822244051,3.88856,2571.7,2571.1,3.88929]
[1723822244364,3.88856,2571.7,2571.0,3.88949]
[1723822244365,3.88856,2571.7,2571.2,3.88921]
[1723822244536,3.88856,2571.7,2570.4,2.4386]
[1723822244537,2.4477,2571.8,2571.1,0.07778311]
[1723822244739,3.88796,2572.1,2571.5,3.88869]
[1723822244942,3.88825,2571.9,2571.2,3.8891]
[1723822245139,3.88825,2571.9,2571.3,3.88908]
[1723822245437,3.88825,2571.9,2570.3,3.89048]
[1723822245438,0.633566,2572.0,2571.4,3.8889]
[1723822245636,7.77592,2572.1,2571.5,3.88869]
[1723822245835,3.88803,2572.0,2571.4,3.88883]
[1723822246037,0.777598,2571.9,2571.4,7.77765]
[1723822246238,0.07280335,2571.8,2571.2,3.88914]
[1723822246439,3.88828,2571.9,2571.2,3.88914]
[1723822246766,3.88841,2571.8,2571.2,3.88913]
[1723822247264,3.88841,2571.8,2570.8,3.88975]
[1723822247265,0.07280335,2571.7,2570.8,3.88975]
[1723822247449,3.88856,2571.7,2571.0,3.8895]
[1723822247651,3.88878,2571.5,2571.0,3.88943]
[1723822247961,3.88878,2571.5,2570.6,3.0]
[1723822247962,0.07280335,2571.4,2570.6,6.89005]
[1723822248127,0.07280335,2571.4,2570.8,3.88975]
[1723822248128,4.277888,2571.4,2570.8,3.88975]
[1723822248326,3.88871,2571.6,2570.8,3.88975]
[1723822248526,3.88871,2571.6,2570.4,2.4399]
[1723822248767,3.8884,2571.8,2571.2,3.88923]
[1723822248968,3.8884,2571.8,2571.2,8.167293]
[1723822249266,3.8884,2571.8,2571.2,7.77827]
[1723822249436,0.24477,2572.1,2571.6,3.88862]
[1723822249638,0.24477,2572.1,2571.4,3.88888]
[1723822249639,3.88798,2572.1,2571.4,3.88879]
[1723822249938,4.301236,2572.1,2571.4,3.88879]
[1723822250137,0.413256,2572.1,2571.6,3.88861]
[1723822250470,0.413256,2572.1,2571.4,3.88885]
[1723822250471,3.88823,2571.9,2571.4,3.88885]
[1723822250627,3.88855,2571.7,2570.7,3.88998]
[1723822250967,3.88855,2571.7,2570.5,3.89028]
[1723822250968,3.88917,2571.3,2570.5,3.89028]
[1723822251269,0.388823,2571.8,2570.5,3.89024]
[1723822251270,3.88948,2571.1,2570.5,3.89024]
[1723822251471,3.88947,2571.1,2570.5,3.89024]
[1723822251778,3.88947,2571.1,2570.3,3.89051]
[1723822251779,7.77925,2571.0,2570.4,3.89043]
[1723822252076,3.89007,2570.7,2570.1,3.89081]
[1723822252370,3.89007,2570.7,2569.4,0.3897]
[1723822252371,3.8906,2570.3,2569.7,3.89141]
[1723822252569,3.89052,2570.4,2569.8,3.89125]
[1723822252784,3.96303335,2570.6,2570.1,3.89084]
[1723822252785,3.89023,2570.6,2570.1,3.89084]
[1723822252931,3.88989,2570.8,2570.1,4.669004]
[1723822253126,3.88989,2570.8,2570.2,3.89066]
[1723822253439,3.88999,2570.7,2570.1,3.89079]
[1723822253774,6.32494,2571.2,2570.4,3.89031]
[1723822253775,3.8895,2571.1,2570.4,3.89031]
[1723822254069,2.4357,2571.2,2570.1,3.192189]
[1723822254070,3.88977,2570.9,2570.3,3.89054]
[1723822254239,0.07280335,2571.2,2570.2,0.3192189]
[1723822254446,3.89033,2570.5,2570.0,3.89091]
[1723822255134,3.89033,2570.5,2569.9,3.0]
[1723822255446,3.89033,2570.5,2569.9,6.89119]
[1723822255631,7.78019,2570.7,2570.0,5.2495051]
[1723822255963,7.78019,2570.7,2570.1,3.89089]
[1723822255964,3.89009,2570.7,2570.1,3.89089]
[1723822256176,3.89009,2570.7,2570.1,5.10492951]
[1723822256372,3.89008,2570.7,2570.1,5.10492951]
[1723822256579,3.88977,2570.9,2570.1,1.21403951]
[1723822256744,3.88992,2570.8,2570.2,3.89066]
[1723822256934,3.88977,2570.9,2570.3,3.89058]
[1723822257271,3.88977,2570.9,2570.3,7.78116]
[1723822257473,6.22261,2571.3,2570.7,3.88995]
[1723822257676,6.22261,2571.3,2570.2,0.389082]
[1723822257677,3.88935,2571.2,2570.6,3.89001]
[1723822257848,3.88887,2571.5,2570.6,2.836801]
[1723822258053,3.88895,2571.4,2570.8,7.77949]
[1723822258361,3.88887,2571.5,2570.8,3.88973]
[1723822258680,3.88887,2571.5,2571.0,3.88952]
[1723822259009,6.37207,2571.7,2570.6,2.836801]
[1723822259140,3.88827,2571.9,2571.2,3.88909]
[1723822259335,3.88857,2571.7,2571.0,3.88942]
[1723822259549,3.88887,2571.5,2570.9,3.88967]
[1723822259774,3.88887,2571.5,2570.9,4.30701101]
[1723822259975,3.88871,2571.6,2571.0,3.88941]
[1723822260276,3.88888,2571.5,2571.0,0.4307011]
[1723822260480,0.07280335,2571.7,2570.7,0.2836801]
[1723822260682,0.07280335,2571.4,2570.2,5.4578]
[1723822260985,3.88933,2571.2,2570.6,3.89012]
[1723822261184,7.77864,2571.2,2570.6,4.279132]
[1723822261351,3.88916,2571.3,2570.6,4.279132]
[1723822261553,3.88916,2571.3,2570.7,4.3178232]
[1723822261879,10.03066,2571.5,2570.9,3.88967]
[1723822262083,6.88731,2572.5,2570.9,3.88967]
[1723822262084,3.88854,2571.7,2570.9,2.3487]
[1723822262251,3.88821,2571.9,2571.2,3.88909]
[1723822262252,3.88823,2571.9,2571.2,3.88909]
[1723822262452,3.88823,2571.9,2570.7,3.88993]
[1723822262453,2.3976,2570.9,2569.6,1.59371926]
[1723822262777,3.89105,2570.0,2569.2,6.22213]
[1723822262983,3.89145,2569.8,2569.2,2.3299]
[1723822263136,3.89145,2569.8,2569.1,3.89239]
[1723822263605,3.89181,2569.5,2568.9,6.22258]
[1723822263770,3.89175,2569.6,2569.0,4.514788]
[1723822264151,3.89175,2569.6,2569.0,4.514738]
[1723822264374,3.89175,2569.6,2569.1,0.6844638]
[1723822264994,3.89111,2570.0,2569.1,0.6844638]
[1723822265295,6.28843,2570.2,2569.4,3.89184]
[1723822265497,10.17931,2570.2,2569.6,3.89163]
[1723822265717,6.28843,2570.2,2569.6,3.89163]
[1723822265876,7.78048,2570.6,2569.9,3.89116]
[1723822266067,3.89038,2570.5,2569.9,3.89116]
[1723822266264,3.89021,2570.6,2569.9,3.89112]
[1723822266459,3.89021,2570.6,2570.1,3.89089]
[1723822267066,2.53176,2570.8,2570.0,0.389116]
[1723822267361,3.8906,2570.3,2569.7,3.89141]
[1723822267595,3.8903,2570.5,2569.7,3.89141]
[1723822267780,0.07280335,2570.4,2569.1,2.3668]
[1723822267997,3.89113,2570.0,2569.2,0.23668]
[1723822268161,3.89113,2570.0,2569.4,3.89187]
[1723822268633,3.89113,2570.0,2569.5,3.89178]
[1723822268771,3.89076,2570.2,2569.5,3.8917]
[1723822269098,3.8912,2569.9,2569.3,7.78403]
[1723822269300,3.8912,2569.9,2569.4,3.89195]
[1723822269596,3.89099,2570.1,2569.5,3.89179]
[1723822269903,3.89049,2570.4,2569.7,3.89149]
[1723822270105,3.89059,2570.3,2569.7,3.8914]
[1723822270290,3.96356335,2570.2,2569.5,4.7261348]
[1723822270494,7.78163,2570.2,2569.5,8.6178348]
[1723822271105,3.89091,2570.1,2569.5,4.7261148]
[1723822271265,3.89007,2570.7,2569.9,3.89119]
[1723822271601,5.49144502,2571.4,2569.8,2.4286]
[1723822271602,3.88977,2570.9,2570.1,3.89081]
[1723822271976,3.88947,2571.1,2570.5,3.89027]
[1723822272169,2.473,2571.2,2570.3,3.89055]
[1723822272170,2.54580335,2571.2,2570.6,0.389027]
[1723822272381,3.88977,2570.9,2570.1,3.8908]
[1723822272584,3.89,2570.7,2570.0,3.89103]
[1723822272947,3.89,2570.7,2569.8,2.4286]
[1723822272948,0.07280335,2570.6,2569.8,2.4286]
[1723822273234,3.89067,2570.3,2569.8,3.89135]
[1723822273538,3.8901,2570.7,2570.1,3.89087]
[1723822273682,3.89007,2570.7,2570.0,3.89091]
[1723822273881,3.89007,2570.7,2570.1,0.389091]
[1723822274078,7.78016,2570.7,2570.1,0.389091]
[1723822274307,3.89037,2570.5,2570.1,0.389091]
[1723822274580,2.4073,2571.1,2570.1,3.89075]
[1723822274886,2.4073,2571.1,2570.3,3.89059]
[1723822274887,3.88995,2570.8,2570.3,3.89059]
[1723822275093,0.07280335,2571.0,2570.3,3.89059]
[1723822275094,3.88959,2571.0,2570.3,3.89059]
[1723822275300,3.88935,2571.2,2570.5,3.89016]
[1723822275611,7.77871,2571.2,2570.7,3.88997]
[1723822275833,3.88935,2571.2,2570.7,3.88997]
[1723822276203,2.3196,2571.4,2570.7,0.778013]
[1723822276204,3.88902,2571.4,2570.7,0.778013]
[1723822276371,3.8888,2571.5,2570.9,7.77918]
[1723822276580,3.88818,2571.9,2571.3,3.88893]
[1723822276847,2.4244,2572.1,2571.4,0.388893]
[1723822276848,3.88847,2571.7,2571.4,0.388893]
[1723822277047,3.88847,2571.7,2571.1,3.88927]
[1723822277048,0.07280335,2571.6,2570.7,4.11738]
[1723822277255,3.88952,2571.1,2570.5,3.89026]
[1723822277416,3.88965,2571.0,2570.4,3.89037]
[1723822277759,3.88965,2571.0,2570.3,3.0]
[1723822277760,3.88984,2570.8,2570.3,3.89045]
[1723822278055,3.88984,2570.8,2570.1,3.89083]
[1723822278056,3.89006,2570.7,2570.2,3.89066]
[1723822278261,0.07280335,2570.8,2570.2,0.778142]
[1723822278262,3.89016,2570.6,2570.2,0.778142]
[1723822278468,3.88976,2570.9,2570.3,3.89056]
[1723822278692,3.89,2570.7,2570.1,3.89076]
[1723822278813,0.07280335,2570.8,2570.3,3.89051]
[1723822279008,2.4107,2571.5,2570.5,3.8902]
[1723822279009,7.77894,2571.1,2570.5,3.8902]
[1723822279266,3.88918,2571.3,2570.6,0.38902]
[1723822279411,3.8894,2571.1,2570.5,7.78039]
[1723822279611,3.88917,2571.3,2570.4,2.3846]
[1723822279812,3.88946,2571.1,2570.5,4.12865]
[1723822280030,3.88924,2571.2,2570.7,3.88997]
[1723822280253,3.88914,2571.3,2570.8,3.88973]
[1723822280558,3.88894,2571.4,2570.7,3.8899]
[1723822280765,3.88913,2571.3,2570.8,4.278817]
[1723822280925,3.88894,2571.4,2570.8,4.278817]
[1723822281128,7.77797,2571.4,2570.8,4.278817]
[1723822281316,6.30277,2571.8,2571.1,3.88927]
[1723822281317,3.88853,2571.7,2571.1,3.88927]
[1723822281512,3.8889,2571.5,2571.0,3.8894]
[1723822281713,3.88895,2571.4,2570.9,3.88968]
[1723822281951,3.88925,2571.2,2570.6,3.89]
[1723822282153,3.88925,2571.2,2570.5,3.89028]
[1723822282154,3.8894,2571.1,2570.5,3.89028]
[1723822282321,3.8894,2571.1,2570.0,3.89098]
[1723822282322,3.8897,2570.9,2570.1,3.89082]
[1723822282526,3.8897,2570.9,2570.3,3.89056]
[1723822282749,3.88966,2571.0,2570.3,3.89056]
[1723822282919,3.88966,2571.0,2570.1,0.23043]
[1723822282920,3.88966,2571.0,2570.4,3.89036]
[1723822283118,3.88966,2571.0,2570.4,4.279386]
[1723822283523,3.88966,2571.0,2570.5,3.8902]
[1723822283852,3.88966,2571.0,2570.4,4.279386]
[1723822284024,3.88994,2570.8,2570.2,3.89065]
[1723822284351,3.88958,2571.0,2570.4,3.89041]
[1723822284539,3.88898,2571.4,2570.8,3.8898]
[1723822284743,7.778,2571.4,2570.8,3.88975]
[1723822284950,7.77803,2571.4,2570.8,3.88975]
[1723822285116,3.88898,2571.4,2570.7,3.88993]
[1723822285317,3.88923,2571.2,2570.7,3.88993]
[1723822285521,3.88923,2571.2,2570.6,3.89003]
[1723822285926,3.88923,2571.2,2570.7,3.88997]
[1723822286657,3.88902,2571.4,2570.9,3.88958]
[1723822286857,3.889,2571.4,2570.6,3.89003]
[1723822287169,3.88941,2571.1,2570.7,0.389003]
[1723822287319,3.88978,2570.9,2570.3,6.89049]